bitfinex-derivatives/quotes_BTCF0:USTF0_20251216
["timestamp","ask_amount","ask_price","bid_price","bid_amount"]
[1765909215416,0.05640156,87423.0,87422.0,0.0694012]
[1765909217907,0.41720156,87423.0,87422.0,0.05796]
[1765909218103,0.05623,87411.0,87410.0,0.0411128]
[1765909218307,0.08055588,87411.0,87410.0,0.02967]
[1765909219307,0.0676732,87407.0,87383.0,0.3608]
[1765909219514,0.45279908,87407.0,87395.0,0.0114447]
[1765909220316,0.45279908,87407.0,87397.0,0.0114445]
[1765909220901,0.45279908,87407.0,87399.0,0.0114442]
[1765909221314,0.45279908,87407.0,87396.0,0.0114445]
[1765909221611,0.45479908,87407.0,87398.0,0.0114443]
[1765909221816,0.45679908,87407.0,87398.0,0.0114443]
[1765909223120,0.45679908,87407.0,87395.0,0.0114447]
[1765909223321,0.05623,87384.0,87383.0,0.41876]
[1765909223509,0.05623,87384.0,87383.0,0.0694063]
[1765909224814,0.05623,87384.0,87383.0,0.0714063]
[1765909225513,0.0676762,87384.0,87383.0,0.002]
[1765909225716,0.0676773,87376.0,87375.0,0.00017156]
[1765909225919,0.45280307,87376.0,87375.0,0.00017156]
[1765909226212,0.44135577,87376.0,87375.0,0.05813156]
[1765909226423,0.44135577,87376.0,87375.0,0.00017156]
[1765909227010,0.05623,87364.0,87363.0,0.0114489]
[1765909227204,0.41703,87364.0,87363.0,0.0114489]
[1765909227720,0.41703,87364.0,87363.0,0.0694089]
[1765909227918,0.05623,87364.0,87363.0,0.0694089]
[1765909228117,0.05640166,87372.0,87371.0,0.0694079]
[1765909228314,0.02877166,87372.0,87371.0,0.0694079]
[1765909230916,0.00017166,87372.0,87371.0,0.0694079]
[1765909231314,0.05640166,87372.0,87371.0,0.0694079]
[1765909232121,0.02877166,87372.0,87371.0,0.0694079]
[1765909232523,0.00017166,87372.0,87371.0,0.0694079]
[1765909234217,0.00017166,87372.0,87371.0,0.0704079]
[1765909234922,0.00017166,87372.0,87371.0,0.0714079]
[1765909236015,0.41636,87391.0,87390.0,0.0683854]
[1765909236216,0.38856,87391.0,87390.0,0.0683854]
[1765909236418,0.41636,87400.0,87399.0,0.0683842]
[1765909236817,0.02776,87400.0,87399.0,0.0683842]
[1765909237716,0.02976,87400.0,87399.0,0.0683842]
[1765909238520,0.03076,87400.0,87399.0,0.0683842]
[1765909238728,0.02876,87400.0,87399.0,0.0693842]
[1765909239426,0.05656,87400.0,87399.0,0.0693842]
[1765909239924,0.05656,87400.0,87399.0,0.001]
[1765909240320,0.0670052,87392.0,87391.0,0.00017166]
[1765909240622,0.4278052,87392.0,87391.0,0.00017166]
[1765909241622,0.4288052,87392.0,87391.0,0.00017166]
[1765909243016,0.4318052,87392.0,87391.0,0.00017166]
[1765909243619,0.4318052,87392.0,87391.0,0.01161696]
[1765909243922,0.4318052,87392.0,87391.0,0.06855696]
[1765909244322,0.45613522,87392.0,87391.0,0.06855696]
[1765909244822,0.05956,87392.0,87391.0,0.06855696]
[1765909245218,0.03176,87392.0,87391.0,0.06855696]
[1765909245418,0.004,87392.0,87391.0,0.06855696]
[1765909245818,0.001,87392.0,87391.0,0.06855696]
[1765909246023,0.003,87392.0,87391.0,0.06855696]
[1765909246727,0.002,87392.0,87391.0,0.06855696]
[1765909246928,0.001,87392.0,87391.0,0.06855696]
[1765909247629,0.41636,87399.0,87398.0,0.0683844]
[1765909247825,0.44072667,87399.0,87398.0,0.0683844]
[1765909249322,0.0670052,87392.0,87391.0,0.00117166]
[1765909249530,0.45217187,87392.0,87391.0,0.00117166]
[1765909250028,0.45217187,87392.0,87391.0,0.00017166]
[1765909250833,0.45617187,87392.0,87391.0,0.00017166]
[1765909258338,0.0114483,87368.0,87367.0,0.07377]
[1765909258543,0.0670083,87368.0,87367.0,0.0852183]
[1765909259844,0.0670083,87368.0,87367.0,0.0872183]
[1765909260046,0.0670083,87368.0,87367.0,0.0882183]
[1765909261442,0.02776,87374.0,87373.0,0.0683876]
[1765909261741,0.00017166,87376.0,87375.0,0.0683874]
[1765909262233,0.05573166,87376.0,87375.0,0.0683874]
[1765909262944,0.05573166,87376.0,87375.0,0.0693874]
[1765909263545,0.05673166,87376.0,87375.0,0.0693874]
[1765909264836,0.06817896,87376.0,87375.0,0.0693874]
[1765909265846,0.06817896,87376.0,87375.0,0.0298]
[1765909266048,0.06817896,87376.0,87375.0,0.0597]
[1765909267137,0.0925583,87376.0,87375.0,0.001]
[1765909269234,0.0689084,87367.0,87366.0,0.0402484]
[1765909269441,0.4297084,87367.0,87366.0,0.0701484]
[1765909270850,0.4297084,87367.0,87366.0,0.0721484]
[1765909271150,0.4297084,87367.0,87366.0,0.0617]
[1765909272048,0.46958031,87367.0,87366.0,0.003]
[1765909272450,0.46958031,87367.0,87360.0,0.00013021]
[1765909272451,0.0689092,87361.0,87360.0,0.00013021]
[1765909272750,0.09331111,87361.0,87360.0,0.00013021]
[1765909273540,0.09331111,87361.0,87360.0,0.02893021]
[1765909273752,0.09331111,87361.0,87360.0,0.05883021]
[1765909274651,0.09331111,87361.0,87360.0,0.00013021]
[1765909274948,0.09431111,87361.0,87360.0,0.00013021]
[1765909275851,0.068912,87340.0,87339.0,0.0868321]
[1765909276047,0.05746,87340.0,87339.0,0.0868321]
[1765909276951,0.05746,87340.0,87339.0,0.07538]
[1765909276952,0.0575888,87340.0,87339.0,0.07538]
[1765909277252,0.0575888,87340.0,87339.0,0.004]
[1765909277748,0.0575888,87340.0,87339.0,0.0328]
[1765909277949,0.0575888,87340.0,87339.0,0.0627]
[1765909278552,0.0575888,87340.0,87339.0,0.07938]
[1765909278851,0.0001288,87340.0,87339.0,0.07938]
[1765909279047,0.0277688,87340.0,87339.0,0.07938]
[1765909279352,0.0001288,87340.0,87339.0,0.07938]
[1765909279648,0.05746,87319.0,87318.0,0.04548]
[1765909279850,0.05756601,87319.0,87318.0,0.07538]
[1765909280042,0.06902071,87319.0,87318.0,0.07538]
[1765909280438,0.02774601,87319.0,87318.0,0.07538]
[1765909280643,0.00210601,87319.0,87318.0,0.43618]
[1765909280959,0.00017176,87327.0,87326.0,0.0701538]
[1765909281161,0.00017176,87327.0,87326.0,0.4309538]
[1765909282855,0.00117176,87327.0,87326.0,0.4309538]
[1765909283047,0.00217176,87327.0,87326.0,0.4309538]
[1765909283455,0.00117176,87327.0,87326.0,0.4309538]
[1765909284560,0.00017176,87327.0,87326.0,0.4309538]
[1765909284765,0.00117176,87327.0,87326.0,0.4309538]
[1765909286359,0.00017176,87327.0,87326.0,0.4309538]
[1765909289655,0.00017176,87327.0,87326.0,0.4319538]
[1765909290160,0.00017176,87327.0,87326.0,0.4205]
[1765909290359,0.02781176,87327.0,87326.0,0.0597]
[1765909290545,0.02781176,87327.0,87326.0,0.77706]
[1765909290752,0.00017176,87327.0,87326.0,1.13786]
[1765909290953,0.00017176,87327.0,87326.0,0.4205]
[1765909291154,0.00017176,87327.0,87326.0,1.13786]
[1765909291549,0.00017176,87327.0,87326.0,1.13686]
[1765909291753,0.0689107,87350.0,87349.0,0.0587]
[1765909292260,0.09327602,87350.0,87349.0,0.0587]
[1765909292460,0.0689107,87350.0,87349.0,0.0587]
[1765909293061,0.0709107,87350.0,87349.0,0.0587]
[1765909293260,0.0729107,87350.0,87349.0,0.0587]
[1765909293556,0.06146,87350.0,87349.0,0.0587]
[1765909294059,0.03164,87350.0,87349.0,0.0587]
[1765909294258,0.004,87350.0,87349.0,0.0587]
[1765909294458,0.002,87350.0,87349.0,0.4195]
[1765909294762,0.003,87350.0,87349.0,0.4195]
[1765909295056,0.002,87350.0,87349.0,0.4195]
[1765909295246,0.00017176,87358.0,87357.0,0.05731]
[1765909295846,0.00017176,87358.0,87357.0,0.0687597]
[1765909297048,0.00117176,87358.0,87357.0,0.0687597]
[1765909298465,0.41564,87373.0,87372.0,0.0687578]
[1765909298762,0.05484,87373.0,87372.0,0.7861178]
[1765909300350,0.05584,87373.0,87372.0,0.7861178]
[1765909301454,0.05684,87373.0,87372.0,0.7861178]
[1765909301963,0.05584,87373.0,87372.0,0.7861178]
[1765909302154,0.05684,87373.0,87372.0,0.77467]
[1765909302355,0.05684,87373.0,87368.0,0.05731]
[1765909302356,0.0662882,87369.0,87368.0,0.05731]
[1765909302560,0.0662882,87369.0,87368.0,0.77459]
[1765909302958,0.05484,87369.0,87368.0,0.77459]
[1765909303669,0.05684,87369.0,87368.0,0.77459]
[1765909303858,0.002,87369.0,87368.0,0.77459]
[1765909304058,0.05684,87369.0,87368.0,0.05731]
[1765909304258,0.05684,87369.0,87368.0,0.77455]
[1765909304566,0.002,87369.0,87368.0,0.77455]
[1765909304861,0.03012,87369.0,87368.0,0.77455]
[1765909305170,0.02912,87369.0,87368.0,0.77455]
[1765909305360,0.002,87369.0,87368.0,0.77455]
[1765909305866,0.001,87369.0,87368.0,0.77455]
[1765909306065,0.002,87369.0,87368.0,0.77455]
[1765909306266,0.02912,87369.0,87368.0,0.77455]
[1765909307359,0.05684,87369.0,87368.0,0.77455]
[1765909307568,0.05584,87369.0,87368.0,0.77455]
[1765909309358,0.05684,87369.0,87368.0,0.77455]
[1765909310863,0.0662887,87365.0,87364.0,0.00017176]
[1765909311064,0.0662887,87365.0,87346.0,0.01668]
[1765909311065,0.05484,87357.0,87346.0,0.01668]
[1765909311368,0.0662897,87357.0,87355.0,0.01145]
[1765909311570,0.0662897,87357.0,87356.0,0.41811]
[1765909311867,0.0662897,87357.0,87356.0,0.05731]
[1765909312072,0.05484,87357.0,87356.0,0.05731]
[1765909312265,0.002,87357.0,87356.0,0.05731]
[1765909312465,0.004,87357.0,87356.0,0.05731]
[1765909312664,0.004,87357.0,87356.0,0.41811]
[1765909313870,0.002,87357.0,87356.0,0.41811]
[1765909314172,0.003,87357.0,87356.0,0.41811]
[1765909314370,0.001,87357.0,87356.0,0.41811]
[1765909314571,0.41564,87372.0,87371.0,0.0687579]
[1765909315968,0.41664,87372.0,87371.0,0.05731]
[1765909316274,0.05484,87365.0,87364.0,0.0687588]
[1765909317368,0.4290879,87372.0,87371.0,0.0687579]
[1765909317563,0.4300879,87372.0,87371.0,0.0687579]
[1765909317766,0.002,87372.0,87371.0,0.0687579]
[1765909318265,0.0662871,87377.0,87376.0,0.0687573]
[1765909318464,0.0906209,87377.0,87376.0,0.0687573]
[1765909318978,0.0514538,87377.0,87376.0,0.0687573]
[1765909319161,0.00017176,87381.0,87377.0,0.05731]
[1765909319367,0.02940892,87378.0,87377.0,0.05731]
[1765909319567,0.05712892,87378.0,87377.0,0.05731]
[1765909320772,0.05812892,87378.0,87377.0,0.05731]
[1765909321275,0.08149288,87378.0,87377.0,0.05731]
[1765909321476,0.08249288,87378.0,87377.0,0.05731]
[1765909321877,0.08149288,87378.0,87377.0,0.05731]
[1765909322073,0.08249288,87378.0,87377.0,0.05731]
[1765909322473,0.08449288,87378.0,87377.0,0.05731]
[1765909322869,0.08449288,87378.0,87368.0,0.40413176]
[1765909322870,0.05484,87369.0,87368.0,0.06893006]
[1765909323278,0.07921821,87369.0,87368.0,0.06893006]
[1765909323773,0.07921821,87369.0,87368.0,0.00017176]
[1765909324172,0.0670992,87361.0,87360.0,0.0682793]
[1765909324379,0.4522835,87361.0,87360.0,0.0682793]
[1765909324978,0.4522835,87361.0,87360.0,0.05683]
[1765909325887,0.0670997,87357.0,87356.0,0.0682798]
[1765909326078,0.0671001,87354.0,87353.0,0.02817]
[1765909326273,0.05565,87353.0,87352.0,0.0396204]
[1765909326587,0.05565,87353.0,87346.0,0.01692]
[1765909326588,0.0671011,87347.0,87346.0,0.02817]
[1765909326887,0.45225587,87347.0,87346.0,0.02817]
[1765909328087,0.0671017,87342.0,87341.0,0.13811]
[1765909330276,0.05565,87342.0,87341.0,0.13811]
[1765909330476,0.001,87347.0,87346.0,0.0862712]
[1765909330785,0.05565,87353.0,87352.0,0.0682804]
[1765909332286,0.41645,87354.0,87353.0,0.07482]
[1765909333484,0.05665,87354.0,87353.0,0.07482]
[1765909333887,0.0671007,87350.0,87349.0,0.0682807]
[1765909334078,0.4279007,87350.0,87349.0,0.05683]
[1765909334480,0.05565,87350.0,87349.0,0.05683]
[1765909334791,0.02704,87350.0,87349.0,0.05683]
[1765909335588,0.0671007,87350.0,87349.0,0.05683]
[1765909335888,0.0671007,87350.0,87342.0,0.0682817]
[1765909335889,0.0671016,87343.0,87342.0,0.0682817]
[1765909336086,0.02704,87343.0,87342.0,0.0682817]
[1765909336285,0.3992898,87357.0,87356.0,0.0682799]
[1765909336590,0.4278998,87357.0,87356.0,0.0682799]
[1765909336790,0.41645,87357.0,87356.0,0.0682799]
[1765909337592,0.41745,87357.0,87356.0,0.0682799]
[1765909337793,0.41845,87357.0,87356.0,0.0682799]
[1765909338986,0.05565,87354.0,87353.0,0.0396202]
[1765909339184,0.05565,87354.0,87353.0,0.0682802]
[1765909339490,0.05565,87354.0,87353.0,0.05683]
[1765909340405,0.05765,87354.0,87353.0,0.05683]
[1765909340791,0.05565,87347.0,87346.0,0.07482]
[1765909341789,0.05565,87347.0,87346.0,0.0862712]
[1765909341998,0.02704,87347.0,87346.0,0.0862712]
[1765909342688,0.05565,87347.0,87346.0,0.0862712]
[1765909343089,0.0671011,87347.0,87346.0,0.02817]
[1765909343390,0.05565,87340.0,87339.0,0.0852021]
[1765909343990,0.001,87347.0,87339.0,0.0852021]
[1765909343991,0.05665,87347.0,87346.0,0.0862712]
[1765909344192,0.02804,87347.0,87346.0,0.0862712]
[1765909344392,0.03004,87347.0,87346.0,0.0862712]
[1765909344696,0.003,87347.0,87346.0,0.0862712]
[1765909345196,0.0701011,87347.0,87346.0,0.0682812]
[1765909345394,0.05865,87347.0,87346.0,0.0862712]
[1765909345589,0.05765,87347.0,87346.0,0.0862712]
[1765909346292,0.002,87347.0,87346.0,0.0862712]
[1765909346492,0.4278997,87357.0,87356.0,0.0682799]
[1765909346700,0.45259162,87357.0,87356.0,0.0682799]
[1765909347501,0.45259162,87357.0,87356.0,0.05683]
[1765909348205,0.45359162,87357.0,87356.0,0.05683]
[1765909349093,0.45559162,87357.0,87356.0,0.05683]
[1765909349893,0.45559162,87357.0,87356.0,0.0682799]
[1765909350887,0.44414192,87357.0,87356.0,0.0682799]
[1765909351093,0.38849192,87357.0,87356.0,0.0682799]
[1765909351602,0.3638,87357.0,87356.0,0.0682799]
[1765909351994,0.001,87357.0,87356.0,0.0682799]
[1765909352188,0.002,87357.0,87356.0,0.0682799]
[1765909352394,0.00017176,87362.0,87361.0,0.0682792]
[1765909352591,0.00017176,87362.0,87361.0,0.49072299]
[1765909352796,0.00017176,87362.0,87361.0,0.4290792]
[1765909353694,0.00017176,87362.0,87361.0,0.4300792]
[1765909354000,0.00017176,87362.0,87361.0,0.4310792]
[1765909354401,0.00228892,87378.0,87377.0,0.0679771]
[1765909354799,0.02702627,87378.0,87377.0,0.0679771]
[1765909355408,0.00228892,87378.0,87377.0,0.0679771]
[1765909355898,0.00228892,87378.0,87374.0,0.01648]
[1765909355899,0.05745,87376.0,87375.0,0.03987234]
[1765909356098,0.05745,87376.0,87375.0,0.06823234]
[1765909356697,0.05745,87376.0,87375.0,0.05653]
[1765909358900,0.0688978,87372.0,87371.0,0.0679778]
[1765909359910,0.0698978,87372.0,87371.0,0.0396178]
[1765909360114,0.0698978,87372.0,87369.0,0.00017176]
[1765909360115,0.05745,87370.0,87369.0,0.02834176]
[1765909360501,0.05745,87370.0,87369.0,0.00017176]
[1765909360898,0.08226015,87370.0,87369.0,0.00017176]
[1765909361398,0.0688992,87361.0,87360.0,0.19691085]
[1765909361598,0.0688992,87361.0,87360.0,0.0679793]
[1765909361998,0.05745,87361.0,87360.0,0.0679793]
[1765909363514,0.05745,87361.0,87360.0,0.0844593]
[1765909363713,0.05845,87361.0,87360.0,0.0844593]
[1765909363917,0.03009,87361.0,87360.0,0.0844593]
[1765909364213,0.03109,87361.0,87360.0,0.0844593]
[1765909364815,0.05845,87361.0,87360.0,0.0844593]
[1765909365512,0.03009,87361.0,87360.0,0.0844593]
[1765909365713,0.02909,87361.0,87360.0,0.0844593]
[1765909365903,0.05745,87361.0,87360.0,0.0844593]
[1765909366101,0.0688987,87365.0,87364.0,0.0679788]
[1765909367118,0.0698987,87365.0,87364.0,0.0679788]
[1765909367910,0.001,87365.0,87364.0,0.4287788]
[1765909368514,0.002,87365.0,87364.0,0.4287788]
[1765909369104,0.001,87365.0,87364.0,0.4297788]
[1765909369505,0.0688977,87373.0,87372.0,0.0679778]
[1765909369802,0.05745,87373.0,87372.0,0.0679778]
[1765909371210,0.05745,87373.0,87372.0,0.05653]
[1765909373317,0.05845,87373.0,87372.0,0.05653]
[1765909374112,0.05745,87372.0,87371.0,0.0114479]
[1765909374307,0.05745,87372.0,87371.0,0.0679779]
[1765909375515,0.05745,87361.0,87360.0,0.57462061]
[1765909375721,0.0688992,87361.0,87360.0,0.4287794]
[1765909376024,0.09373351,87361.0,87360.0,0.3608]
[1765909376723,0.0688995,87359.0,87358.0,0.0679795]
[1765909376918,0.0688999,87356.0,87355.0,0.0396199]
[1765909377217,0.0688999,87356.0,87355.0,0.0679799]
[1765909377424,0.05745,87356.0,87355.0,0.0679799]
[1765909378517,0.05745,87350.0,87349.0,0.0114507]
[1765909378828,0.08229824,87350.0,87349.0,0.0114507]
[1765909379817,0.08329824,87350.0,87349.0,0.0114507]
[1765909380318,0.08329824,87350.0,87349.0,0.0396207]
[1765909380517,0.08429824,87350.0,87349.0,0.0396207]
[1765909380923,0.08429824,87350.0,87349.0,0.0679807]
[1765909385021,0.05845,87350.0,87349.0,0.0679807]
[1765909385216,0.05945,87350.0,87349.0,0.0679807]
[1765909385826,0.05845,87350.0,87349.0,0.0679807]
[1765909388229,0.05697,87343.0,87342.0,0.43212]
[1765909388423,0.001,87350.0,87349.0,0.0662908]
[1765909388730,0.02898,87350.0,87349.0,0.0662908]
[1765909388922,0.001,87350.0,87349.0,0.0662908]
[1765909389431,0.05797,87350.0,87349.0,0.0662908]
[1765909390729,0.05697,87350.0,87349.0,0.0662908]
[1765909391630,0.3608,87352.0,87351.0,0.0662905]
[1765909391828,0.0684195,87359.0,87358.0,0.05484]
[1765909392024,0.06432947,87359.0,87358.0,0.05484]
[1765909392328,0.09331947,87359.0,87358.0,0.05484]
[1765909392532,0.36097176,87367.0,87354.0,0.01655]
[1765909392533,0.41794176,87367.0,87366.0,0.0828386]
[1765909392829,0.44283974,87367.0,87366.0,0.05484]
[1765909393031,0.44283974,87367.0,87366.0,0.02722]
[1765909393333,0.44283974,87367.0,87360.0,0.01655]
[1765909393334,0.05697,87361.0,87360.0,0.0662893]
[1765909394627,0.05697,87361.0,87360.0,0.0828393]
[1765909394830,0.05797,87361.0,87360.0,0.0828393]
[1765909395131,0.05897,87361.0,87360.0,0.0828393]
[1765909395334,0.002,87361.0,87360.0,0.0828393]
[1765909395834,0.001,87361.0,87360.0,0.0828393]
[1765909396030,0.36097176,87367.0,87366.0,0.0828386]
[1765909396231,0.41384882,87367.0,87366.0,0.0828386]
[1765909396431,0.38895176,87367.0,87366.0,0.0828386]
[1765909397236,0.41794176,87367.0,87366.0,0.0828386]
[1765909397437,0.05697,87361.0,87360.0,0.05484]
[1765909397730,0.05697,87361.0,87360.0,0.0662893]
[1765909397931,0.05697,87361.0,87360.0,0.0828393]
[1765909398838,0.05797,87361.0,87360.0,0.0828393]
[1765909399236,0.05797,87361.0,87360.0,0.0662893]
[1765909400323,0.05697,87361.0,87360.0,0.0662893]
[1765909400722,0.05697,87358.0,87357.0,0.0736397]
[1765909400934,0.05697,87358.0,87357.0,0.1284797]
[1765909402436,0.02798,87358.0,87357.0,0.1284797]
[1765909402628,0.001,87361.0,87360.0,0.0828394]
[1765909403523,0.05714176,87367.0,87366.0,0.0662886]
[1765909403731,0.02508871,87367.0,87366.0,0.0662886]
[1765909403930,0.08205871,87367.0,87366.0,0.0662886]
[1765909404238,0.08205871,87367.0,87366.0,0.0386686]
[1765909404641,0.08205871,87367.0,87366.0,0.0662886]
[1765909405024,0.08205871,87367.0,87366.0,0.0386686]
[1765909405230,0.09946871,87367.0,87366.0,0.0114486]
[1765909406129,0.08305871,87367.0,87366.0,0.0386686]
[1765909406329,0.08305871,87367.0,87366.0,0.0662886]
[1765909406738,0.08405871,87367.0,87366.0,0.0662886]
[1765909407238,0.02708871,87367.0,87366.0,0.0662886]
[1765909407436,0.00217176,87367.0,87366.0,0.4270886]
[1765909408330,0.00017176,87367.0,87366.0,0.4270886]
[1765909410937,0.02815176,87367.0,87366.0,0.4270886]
[1765909411136,0.05714176,87367.0,87366.0,0.4270886]
[1765909411645,0.05714176,87367.0,87366.0,0.0662886]
[1765909416145,0.00017176,87367.0,87366.0,0.0662886]
[1765909416341,0.02810176,87367.0,87366.0,0.0826386]
[1765909416537,0.05666176,87367.0,87366.0,0.0826386]
[1765909416742,0.00228892,87378.0,87377.0,0.0701071]
[1765909417450,0.05877892,87378.0,87377.0,0.0701071]
[1765909418941,0.05877892,87378.0,87377.0,0.0114471]
[1765909419135,0.08365365,87378.0,87377.0,0.0410771]
[1765909419342,0.08365365,87378.0,87377.0,0.0701071]
[1765909419949,0.08465365,87378.0,87377.0,0.0701071]
[1765909420250,0.08565365,87378.0,87377.0,0.0701071]
[1765909420443,0.03121892,87378.0,87377.0,0.0701071]
[1765909420639,0.00428892,87378.0,87377.0,0.0701071]
[1765909420834,0.00328892,87378.0,87377.0,0.0701071]
[1765909421039,0.00017176,87386.0,87385.0,0.0701061]
[1765909421349,0.00017176,87386.0,87385.0,0.4309061]
[1765909423346,0.00117176,87386.0,87385.0,0.4309061]
[1765909424142,0.00317176,87386.0,87385.0,0.4309061]
[1765909425755,0.00317176,87386.0,87385.0,1.1477061]
[1765909428756,0.3608,87401.0,87400.0,0.0701041]
[1765909429362,0.38873,87401.0,87400.0,0.0701041]
[1765909429566,0.41729,87401.0,87400.0,0.0701041]
[1765909429959,0.42329,87401.0,87400.0,0.0701041]
[1765909430564,0.42029,87401.0,87400.0,0.0701041]
[1765909430971,0.003,87401.0,87400.0,0.0701041]
[1765909431573,0.06810466,87409.0,87408.0,0.0701031]
[1765909431773,0.09290649,87409.0,87408.0,0.0701031]
[1765909432875,0.09290649,87409.0,87408.0,0.02963]
[1765909433170,0.09290649,87409.0,87405.0,0.0114433]
[1765909433171,0.0679333,87406.0,87405.0,0.0410733]
[1765909433375,0.0679333,87406.0,87405.0,0.0701033]
[1765909434876,0.05749,87406.0,87405.0,0.0701033]
[1765909435279,0.002,87406.0,87405.0,0.0701033]
[1765909435772,0.001,87406.0,87405.0,0.0701033]
[1765909436477,0.02810166,87409.0,87408.0,0.0701031]
[1765909437072,0.05666166,87409.0,87408.0,0.0701031]
[1765909438287,0.05666166,87409.0,87408.0,0.0864531]
[1765909440277,0.02810166,87409.0,87408.0,0.0864531]
[1765909441470,0.00017166,87409.0,87408.0,0.4472531]
[1765909442483,0.3608,87428.0,87417.0,0.05866]
[1765909442976,0.3608,87428.0,87417.0,0.0701019]
[1765909443572,0.00017166,87426.0,87417.0,0.0701019]
[1765909443969,0.00017166,87426.0,87417.0,0.08126353]
[1765909444178,0.05966787,87418.0,87417.0,0.0701019]
[1765909444781,0.05966787,87418.0,87417.0,0.0114419]
[1765909444974,0.05966787,87418.0,87408.0,0.3885931]
[1765909444975,0.05638,87409.0,87408.0,0.07181]
[1765909445578,0.0678229,87409.0,87408.0,0.07181]
[1765909445779,0.05638,87409.0,87408.0,0.07181]
[1765909446385,0.05638,87409.0,87408.0,0.07281]
[1765909447178,0.00228787,87418.0,87417.0,0.0669019]
[1765909447490,0.07010967,87418.0,87417.0,0.0669019]
[1765909447675,0.05866787,87418.0,87417.0,0.0669019]
[1765909448382,0.00228787,87418.0,87417.0,0.0669019]
[1765909449088,0.05866787,87418.0,87417.0,0.0669019]
[1765909449993,0.05866787,87418.0,87408.0,0.43261]
[1765909449994,0.05638,87409.0,87408.0,0.43261]
[1765909450379,0.0678229,87409.0,87408.0,0.0669031]
[1765909450584,0.0845429,87409.0,87408.0,0.0114431]
[1765909450781,0.10925278,87409.0,87408.0,0.0114431]
[1765909451478,0.09253278,87409.0,87408.0,0.0394331]
[1765909451679,0.08108988,87409.0,87408.0,0.0394331]
[1765909451988,0.08108988,87409.0,87408.0,0.0669031]
[1765909452586,0.3722414,87421.0,87408.0,0.0669031]
[1765909452587,0.00099999,87450.0,87412.0,0.05546]
[1765909452793,0.08982,87472.0,87471.0,0.01794]
[1765909452981,0.08982,87472.0,87471.0,1.5]
[1765909452982,0.01672,87472.0,87471.0,1.5]
[1765909453182,0.0731,87472.0,87471.0,1.5]
[1765909453375,0.05638,87470.0,87469.0,0.0114351]
[1765909453885,0.05638,87470.0,87469.0,0.0668951]
[1765909454088,0.00017156,87478.0,87477.0,0.066894]
[1765909454089,0.05655156,87478.0,87477.0,0.066894]
[1765909454588,0.00017156,87478.0,87477.0,0.066894]
[1765909455181,0.00217156,87478.0,87477.0,0.066894]
[1765909455383,0.0731,87496.0,87495.0,0.0114317]
[1765909455784,0.0731,87496.0,87495.0,0.0394217]
[1765909456382,0.0731,87496.0,87495.0,0.0114317]
[1765909456779,0.0771,87496.0,87495.0,0.0114317]
[1765909457488,0.0731,87496.0,87495.0,0.0114317]
[1765909457690,0.0791,87496.0,87495.0,0.0114317]
[1765909457891,0.05638,87491.0,87490.0,0.05645999]
[1765909458086,0.05638,87488.0,87487.0,0.00017146]
[1765909458591,0.05638,87488.0,87487.0,0.36097146]
[1765909460691,0.05838,87488.0,87487.0,0.36097146]
[1765909463081,0.0114355,87466.0,87465.0,0.3608]
[1765909463288,0.0678155,87466.0,87465.0,0.3608]
[1765909464210,0.0688155,87466.0,87465.0,0.3608]
[1765909464393,0.05738,87466.0,87465.0,0.3608]
[1765909464589,0.05838,87466.0,87465.0,0.3608]
[1765909465598,0.05738,87466.0,87465.0,0.41626]
[1765909466493,0.05638,87466.0,87465.0,0.41626]
[1765909466794,0.05738,87466.0,87465.0,0.3608]
[1765909467187,0.05738,87466.0,87465.0,0.41626]
[1765909467388,0.05638,87466.0,87465.0,0.41626]
[1765909469998,0.05738,87466.0,87465.0,0.41626]
[1765909470194,0.05738,87466.0,87465.0,0.38879]
[1765909471102,0.05738,87466.0,87465.0,0.3608]
[1765909472099,0.05738,87466.0,87465.0,0.41626]
[1765909472599,0.001,87466.0,87465.0,0.41626]
[1765909472987,0.02910146,87474.0,87473.0,0.0668946]
[1765909473295,0.02910146,87474.0,87473.0,0.4276946]
[1765909473492,0.00017146,87474.0,87473.0,0.4276946]
[1765909474493,0.08044146,87474.0,87473.0,0.4276946]
[1765909475203,0.00117146,87474.0,87473.0,0.4276946]
[1765909475792,0.15765146,87474.0,87473.0,0.4276946]
[1765909476300,0.15865146,87474.0,87473.0,0.4276946]
[1765909476498,0.15865146,87474.0,87473.0,0.38879]
[1765909476802,0.15865146,87474.0,87473.0,0.46468]
[1765909479309,0.00117146,87474.0,87473.0,0.46468]
[1765909480104,0.07798,87490.0,87489.0,0.14987]
[1765909480409,0.07798,87490.0,87489.0,0.51067]
[1765909480803,0.15648,87490.0,87489.0,0.4462125]
[1765909481003,0.15648,87490.0,87489.0,0.3608]
[1765909483109,0.15848,87490.0,87489.0,0.3608]
[1765909483298,0.16048,87490.0,87489.0,0.3608]
[1765909483700,0.15648,87490.0,87489.0,0.3608]
[1765909483895,0.16048,87490.0,87489.0,0.3608]
[1765909484697,0.1679133,87483.0,87482.0,0.3608]
[1765909486105,0.1689133,87483.0,87482.0,0.3608]
[1765909486309,0.1689133,87483.0,87482.0,0.43478]
[1765909486511,0.1699133,87483.0,87482.0,0.51067]
[1765909487517,0.1709133,87483.0,87482.0,0.51067]
[1765909488625,0.1699133,87483.0,87482.0,0.51067]
[1765909488922,0.1699133,87483.0,87482.0,0.3608]
[1765909490924,0.15648,87482.0,87481.0,0.00017146]
[1765909491120,0.15648,87482.0,87473.0,0.3608]
[1765909491121,0.1679144,87474.0,87473.0,0.3608]
[1765909491322,0.2131957,87464.0,87463.0,0.1437]
[1765909492213,0.2131957,87464.0,87463.0,0.21959]
[1765909492926,0.2131957,87464.0,87463.0,0.22059]
[1765909493127,0.2141957,87464.0,87463.0,0.22059]
[1765909493719,0.2131957,87464.0,87463.0,0.22059]
[1765909494032,0.2141957,87464.0,87463.0,0.22059]
[1765909494435,0.2151957,87464.0,87463.0,0.21959]
[1765909495430,0.2151957,87464.0,87463.0,0.58039]
[1765909497531,0.1699157,87464.0,87463.0,0.58039]
[1765909497730,0.0914157,87464.0,87463.0,0.58039]
[1765909498322,0.0134357,87464.0,87463.0,0.58039]
[1765909498731,0.0914157,87464.0,87463.0,0.58039]
[1765909499032,0.0904157,87464.0,87463.0,0.58039]
[1765909499233,0.1689157,87464.0,87463.0,0.58039]
[1765909499632,0.1679157,87464.0,87463.0,0.58039]
[1765909503135,0.0894157,87464.0,87463.0,0.5918259]
[1765909503727,0.18673146,87472.0,87471.0,0.14157]